bitfinex-derivatives/quotes_SOLF0:USTF0_20250106
["timestamp","ask_amount","ask_price","bid_price","bid_amount"]
[1736204728401,12.55095768,218.38,218.29,2.2896]
[1736204728402,2.2893,218.33,218.29,2.2896]
[1736204728903,1.5032,218.39,218.29,2.2896]
[1736204728904,1.5032,218.39,218.29,11.08655768]
[1736204729999,1.5032,218.39,218.33,2.2892]
[1736204730300,12.55935768,218.44,218.33,5.0092]
[1736204730499,2.2889,218.37,218.33,5.0092]
[1736204730799,12.55935768,218.44,218.33,5.0092]
[1736204731505,2.2889,218.37,218.33,5.0092]
[1736204732103,12.55935768,218.44,218.33,2.72]
[1736204732305,12.55935768,218.44,218.34,2.2891]
[1736204732609,11.08655768,218.41,218.33,2.72]
[1736204732805,2.289,218.36,218.33,2.72]
[1736204734008,2.289,218.36,218.33,5.0092]
[1736204735505,12.55935768,218.44,218.33,5.0092]
[1736204735705,2.2887,218.39,218.33,2.72]
[1736204736311,2.2887,218.39,218.35,2.289]
[1736204736809,12.55935768,218.44,218.33,2.72]
[1736204737108,11.08655768,218.41,218.33,2.72]
[1736204737308,11.08655768,218.38,218.27,2.2898]
[1736204737514,13.80655768,218.41,218.28,2.72]
[1736204738111,2.2893,218.33,218.28,2.72]
[1736204738613,13.80655768,218.41,218.28,2.72]
[1736204739707,2.2894,218.32,218.28,5.0097]
[1736204740108,11.08655768,218.38,218.22,1.4274]
[1736204740314,11.08655768,218.38,218.23,2.72]
[1736204740714,11.08655768,218.38,218.25,2.2901]
[1736204741014,11.08655768,218.38,218.25,5.0101]
[1736204741210,2.72,218.41,218.25,5.0101]
[1736204741211,11.08655768,218.35,218.25,5.0101]
[1736204741411,1.5115,218.34,218.25,5.0101]
[1736204742414,2.2898,218.28,218.25,5.0101]
[1736204742716,2.2898,218.28,218.25,2.2901]
[1736204742918,2.2898,218.28,218.24,5.0102]
[1736204746121,1.5115,218.34,218.24,2.72]
[1736204746723,2.2898,218.28,218.24,5.0102]
[1736204750120,2.2899,218.27,218.24,5.0102]
[1736204751123,2.2899,218.27,218.24,12.10195914]
[1736204753225,7.09175914,218.29,218.24,2.72]
[1736204753423,7.09175914,218.29,218.22,7.09175914]
[1736204754027,7.09175914,218.31,218.22,7.09175914]
[1736204754722,7.09175914,218.29,218.22,7.09175914]
[1736204754924,2.2899,218.27,218.22,7.09175914]
[1736204755123,7.09175914,218.29,218.22,7.09175914]
[1736204755522,2.2902,218.24,218.21,2.2905]
[1736204755825,2.2902,218.24,218.21,4.9905]
[1736204756521,2.2902,218.24,218.21,2.2905]
[1736204756723,2.2901,218.25,218.22,9.38215914]
[1736204759525,7.09175914,218.29,218.22,9.38215914]
[1736204759722,1.5115,218.34,218.19,2.7]
[1736204759723,2.2904,218.22,218.19,2.7]
[1736204759929,2.2904,218.22,218.19,9.79175914]
[1736204760527,2.7,218.31,218.21,7.09175914]
[1736204760741,2.2902,218.24,218.21,9.38225914]
[1736204761940,2.2905,218.21,218.19,9.79175914]
[1736204762944,2.2904,218.22,218.19,12.08245914]
[1736204763243,2.2904,218.22,218.21,7.09175914]
[1736204764546,2.2904,218.22,218.19,12.08245914]
[1736204765342,2.2903,218.23,218.19,12.08245914]
[1736204765539,7.09175914,218.28,218.19,12.08245914]
[1736204766340,2.2905,218.21,218.19,12.08245914]
[1736204767444,2.2905,218.21,218.19,9.79175914]
[1736204768645,7.09175914,218.26,218.19,2.7]
[1736204769235,2.2906,218.21,218.19,2.7]
[1736204769440,2.2906,218.21,218.19,7.09175914]
[1736204771349,7.09175914,218.24,218.18,2.7]
[1736204771546,2.2906,218.2,218.18,2.7]
[1736204773249,7.09175914,218.24,218.15,1.5126]
[1736204773451,7.09175914,218.22,218.16,2.7]
[1736204774152,2.2909,218.17,218.16,2.7]
[1736204774545,7.09175914,218.22,218.15,9.79175914]
[1736204774749,7.09175914,218.2,218.15,2.7]
[1736204776049,2.291,218.16,218.15,2.7]
[1736204777254,4.6037,218.25,218.15,9.79175914]
[1736204777558,4.6037,218.25,218.18,7.09175914]
[1736204778056,2.2907,218.2,218.18,7.09175914]
[1736204778458,2.2907,218.2,218.17,2.2909]
[1736204778654,2.2908,218.19,218.16,9.38275914]
[1736204779053,7.09175914,218.22,218.1,6.35634782]
[1736204779354,7.09175914,218.22,218.14,9.38295914]
[1736204779355,2.291,218.17,218.14,9.38295914]
[1736204780459,2.2911,218.16,218.13,2.2913]
[1736204780655,2.2911,218.16,218.13,9.38305914]
[1736204781655,2.2911,218.16,218.15,7.09175914]
[1736204782054,2.291,218.17,218.15,7.09175914]
[1736204782456,4.6037,218.25,218.15,7.09175914]
[1736204782457,7.09175914,218.24,218.15,7.09175914]
[1736204782656,2.2908,218.19,218.17,7.09175914]
[1736204782861,7.09175914,218.24,218.17,7.09175914]
[1736204785063,2.2908,218.19,218.17,7.09175914]
[1736204785364,2.2908,218.19,218.17,9.38265914]
[1736204785760,2.2908,218.18,218.17,7.09175914]
[1736204785967,7.09175914,218.24,218.16,2.66]
[1736204786366,2.2909,218.17,218.16,2.66]
[1736204788064,2.2911,218.16,218.13,7.09175914]
[1736204788259,2.2911,218.16,218.14,2.66]
[1736204788460,4.6037,218.25,218.13,7.09175914]
[1736204788664,2.2911,218.16,218.13,9.38305914]
[1736204788862,2.2911,218.16,218.15,7.09175914]
[1736204790568,2.2909,218.18,218.15,7.09175914]
[1736204790868,2.2909,218.18,218.17,7.09175914]
[1736204791467,2.2908,218.19,218.17,7.09175914]
[1736204791768,2.2908,218.19,218.17,9.75175914]
[1736204792861,2.2908,218.18,218.17,2.66]
[1736204793863,2.2908,218.18,218.17,9.75175914]
[1736204794468,3.056,218.25,218.17,9.75175914]
[1736204794665,3.056,218.25,218.19,7.09175914]
[1736204795368,2.2906,218.2,218.19,7.09175914]
[1736204795668,3.056,218.25,218.17,9.75175914]
[1736204795967,7.09175914,218.24,218.17,9.75175914]
[1736204797465,2.2908,218.19,218.17,9.75175914]
[1736204802669,2.2907,218.2,218.17,12.04265914]
[1736204803064,2.2905,218.22,218.19,2.2907]
[1736204803269,2.2905,218.22,218.19,9.38245914]
[1736204803669,2.29,218.27,218.23,2.2903]
[1736204803867,2.29,218.27,218.23,12.04205914]
[1736204804773,2.2902,218.25,218.23,9.75175914]
[1736204806070,7.09175914,218.29,218.23,2.66]
[1736204806971,2.2902,218.25,218.23,2.66]
[1736204807171,11.47755914,218.31,218.23,9.75175914]
[1736204807972,11.42227595,218.32,218.25,7.09175914]
[1736204808270,4.402,218.4,218.27,7.09175914]
[1736204808473,7.09175914,218.35,218.27,7.09175914]
[1736204808777,2.2895,218.31,218.28,4.9497]
[1736204808977,2.2895,218.31,218.28,2.66]
[1736204809273,2.2896,218.3,218.28,2.66]
[1736204809871,7.062,218.4,218.28,2.66]
[1736204809872,2.2897,218.29,218.28,2.66]
[1736204821078,2.2896,218.31,218.28,2.66]
[1736204822386,2.2897,218.29,218.28,2.66]
[1736204822685,7.09175914,218.29,218.24,2.66]
[1736204822985,7.09175914,218.31,218.24,9.75175914]
[1736204823883,7.09175914,218.35,218.28,7.09175914]
[1736204824184,2.2895,218.31,218.28,9.38145914]
[1736204824388,7.09175914,218.35,218.28,7.09175914]
[1736204824575,7.09175914,218.35,218.26,7.09175914]
[1736204824885,2.2895,218.31,218.27,2.2899]
[1736204825190,7.09175914,218.35,218.27,2.2899]
[1736204825486,7.09175914,218.33,218.24,9.75175914]
[1736204825877,2.2895,218.31,218.24,12.04195914]
[1736204826082,7.09175914,218.31,218.25,2.66]
[1736204826279,7.09175914,218.33,218.25,2.66]
[1736204827390,2.2898,218.29,218.25,4.9501]
[1736204827687,2.2898,218.29,218.26,7.09175914]
[1736204828794,2.2896,218.3,218.26,9.38165914]
[1736204829791,7.09175914,218.33,218.26,9.38165914]
[1736204829990,2.2898,218.29,218.26,9.38165914]
[1736204830190,2.2898,218.29,218.26,7.09175914]
[1736204831485,2.2898,218.29,218.25,2.66]
[1736204831486,2.2895,218.31,218.28,7.09175914]
[1736204831689,7.09175914,218.38,218.3,7.09175914]
[1736204831893,7.09175914,218.38,218.32,7.09175914]
[1736204832099,2.289,218.36,218.32,9.38105914]
[1736204833196,8.90409076,218.45,218.32,7.09175914]
[1736204833401,8.90409076,218.45,218.36,7.09175914]
[1736204833402,4.32799076,218.45,218.36,7.09175914]
[1736204833598,7.09175914,218.44,218.37,2.66]
[1736204833999,2.2884,218.41,218.37,2.66]
[1736204834800,2.2884,218.41,218.37,4.9488]
[1736204835203,2.2887,218.39,218.37,2.66]
[1736204836304,2.2887,218.39,218.37,9.75175914]
[1736204837808,2.2887,218.38,218.37,9.75175914]
[1736204838205,2.2887,218.38,218.37,2.66]
[1736204839010,7.09175914,218.41,218.33,7.09175914]
[1736204839210,2.289,218.36,218.34,2.66]
[1736204840208,2.2888,218.38,218.34,2.66]
[1736204840407,7.09175914,218.41,218.35,7.09175914]
[1736204840910,7.09175914,218.41,218.34,2.66]
[1736204841510,2.2889,218.37,218.34,2.66]
[1736204842912,2.289,218.35,218.34,2.66]
[1736204843812,7.09175914,218.37,218.31,7.09175914]
[1736204844011,7.09175914,218.35,218.29,7.09175914]
[1736204844211,7.09175914,218.35,218.3,2.68]
[1736204844708,7.09175914,218.33,218.3,2.68]
[1736204844914,2.2898,218.28,218.25,7.09175914]
[1736204845114,7.09175914,218.33,218.26,2.68]
[1736204845512,2.2896,218.3,218.26,4.97]
[1736204845909,2.2896,218.3,218.27,7.09175914]
[1736204846310,2.2895,218.31,218.27,9.38155914]
[1736204847011,2.2896,218.3,218.27,9.38155914]
[1736204848411,2.2894,218.32,218.28,2.2897]
[1736204848609,7.09175914,218.35,218.28,2.2897]
[1736204849415,2.2895,218.31,218.28,2.2897]
[1736204851220,4.3854,218.41,218.29,7.09175914]
[1736204851522,7.09175914,218.37,218.29,7.09175914]
[1736204851716,2.2891,218.35,218.29,9.38145914]
[1736204851921,7.09175914,218.37,218.29,9.38145914]
[1736204852317,2.2893,218.33,218.29,9.38145914]
[1736204853420,2.2893,218.33,218.3,2.2896]
[1736204853723,7.09175914,218.37,218.31,2.68]
[1736204854221,2.2894,218.33,218.31,2.68]
[1736204855114,2.2894,218.32,218.31,2.68]
[1736204855724,2.2896,218.3,218.28,7.09175914]
[1736204855926,2.2896,218.3,218.29,2.68]
[1736204857118,2.2895,218.31,218.29,2.68]
[1736204858424,2.2896,218.3,218.29,2.68]
[1736204861529,7.09175914,218.33,218.22,52.4]
[1736204861726,7.09175914,218.33,218.24,7.09175914]
[1736204861927,7.09175914,218.33,218.26,7.09175914]
[1736204863431,2.2898,218.28,218.26,7.09175914]
[1736204864034,2.2898,218.28,218.26,2.68]
[1736204865328,2.2898,218.28,218.26,9.77175914]
[1736204865834,7.09175914,218.29,218.1,158.3738365]
[1736204866132,2.2902,218.25,218.21,9.38225914]
[1736204866332,7.09175914,218.29,218.21,9.38225914]
[1736204866926,7.09175914,218.29,218.21,2.2905]
[1736204867131,7.09175914,218.29,218.22,7.09175914]
[1736204867333,2.2902,218.25,218.21,9.38225914]
[1736204867532,7.09175914,218.29,218.21,9.38225914]
[1736204867731,7.09175914,218.29,218.22,2.68]
[1736204868428,2.2903,218.24,218.22,2.68]
[1736204868733,7.09175914,218.29,218.22,2.68]
[1736204869333,2.2901,218.25,218.22,2.68]
[1736204870828,2.2902,218.24,218.22,2.68]
[1736204872132,7.09175914,218.29,218.22,2.68]
[1736204873237,2.2901,218.26,218.22,4.9704]
[1736204873434,2.2901,218.26,218.23,7.09175914]
[1736204874534,2.2901,218.26,218.23,9.38205914]
[1736204875937,7.09175914,218.29,218.23,7.09175914]
[1736204876440,7.09175914,218.29,218.22,4.9704]
[1736204877739,9.99255914,218.31,218.23,7.09175914]
[1736204878039,2.2901,218.26,218.23,7.09175914]
[1736204879238,7.09175914,218.29,218.22,4.9704]
[1736204879440,2.2901,218.25,218.22,4.9704]
[1736204881838,2.2901,218.25,218.22,2.68]
[1736204883237,2.29,218.26,218.23,7.09175914]
[1736204885037,9.99255914,218.31,218.23,7.09175914]
[1736204885239,2.2901,218.25,218.23,7.09175914]
[1736204887140,2.2901,218.25,218.22,2.68]
[1736204891441,7.09175914,218.27,218.18,2.2908]
[1736204891640,7.09175914,218.27,218.19,2.66]
[1736204892443,2.2905,218.22,218.19,2.66]
[1736204892844,2.2905,218.22,218.2,7.09175914]
[1736204893141,2.2903,218.23,218.2,7.09175914]
[1736204893540,2.2903,218.23,218.2,9.38235914]
[1736204894242,2.2902,218.25,218.21,2.2904]
[1736204894441,2.2902,218.25,218.22,7.09175914]
[1736204894947,2.2902,218.25,218.22,9.38205914]
[1736204895543,2.2901,218.26,218.23,2.2903]
[1736204895743,2.2901,218.26,218.22,7.09175914]
[1736204896448,2.2901,218.26,218.23,2.2903]
[1736204896651,2.2901,218.26,218.24,2.66]
[1736204896851,2.2901,218.26,218.24,9.75175914]
[1736204898048,7.09175914,218.32,218.24,9.75175914]
[1736204898240,2.66,218.38,218.24,9.75175914]
[1736204898446,2.2901,218.26,218.24,9.75175914]
[1736204899548,7.09175914,218.32,218.24,12.04185914]
[1736204900552,2.2899,218.27,218.24,12.04185914]
[1736204900748,7.09175914,218.32,218.24,2.66]
[1736204900948,7.09175914,218.3,218.24,2.66]
[1736204902549,2.2901,218.25,218.24,2.66]
[1736204908051,7.09175914,218.34,218.24,9.75175914]
[1736204908250,7.09175914,218.34,218.26,7.09175914]
[1736204908453,2.2897,218.29,218.26,9.38175914]
[1736204908857,2.2897,218.29,218.28,7.09175914]
[1736204909255,2.2895,218.31,218.28,9.38155914]
[1736204909454,7.09175914,218.35,218.29,2.62]
[1736204910256,7.0653,218.4,218.29,2.62]
[1736204910458,7.09175914,218.36,218.29,2.62]
[1736204910661,2.2894,218.32,218.29,2.62]
[1736204912565,2.2894,218.32,218.3,7.09175914]
[1736204914576,7.09175914,218.36,218.3,7.09175914]
[1736204914765,2.2895,218.31,218.3,7.09175914]
[1736204917064,2.2894,218.32,218.3,7.09175914]
[1736204918471,2.2894,218.32,218.29,4.9097]
[1736204918670,2.2895,218.31,218.29,2.62]
[1736204921467,7.09175914,218.37,218.3,9.38125914]
[1736204922366,2.2893,218.33,218.3,9.38125914]
[1736204922666,7.09175914,218.37,218.3,7.09175914]
[1736204923568,2.2894,218.32,218.3,7.09175914]
[1736204923769,2.2894,218.32,218.29,4.9097]
[1736204924874,7.09175914,218.35,218.29,2.62]
[1736204925069,7.09175914,218.33,218.26,7.09175914]
[1736204925267,7.09175914,218.33,218.29,2.62]
[1736204926469,2.2897,218.3,218.29,2.62]
[1736204932878,2.2897,218.3,218.27,2.2899]
[1736204932879,7.09175914,218.31,218.23,7.09175914]
[1736204933080,7.09175914,218.31,218.24,2.62]
[1736204933780,7.09175914,218.31,218.24,4.9101]
[1736204935481,2.2899,218.28,218.24,4.9101]
[1736204938379,7.09175914,218.31,218.24,4.9101]
[1736204938581,2.2899,218.27,218.24,4.9101]
[1736204940976,2.2899,218.27,218.25,2.2901]
[1736204941880,2.2898,218.28,218.25,9.38185914]
[1736204948577,6.0445,218.39,218.27,7.09175914]
[1736204948782,6.0445,218.39,218.31,2.2894]
[1736204948783,2.2891,218.35,218.31,2.2894]
[1736204948983,7.09175914,218.38,218.31,4.8894]
[1736204949482,2.2889,218.37,218.34,9.38085914]
[1736204952185,2.2889,218.37,218.34,7.09175914]
[1736204952387,7.09175914,218.37,218.31,2.6]
[1736204953484,7.09175914,218.35,218.32,2.6]
[1736204954482,2.2893,218.33,218.32,2.6]
[1736204954884,7.09175914,218.33,218.23,2.72376925]
[1736204955084,2.2896,218.3,218.24,9.69175914]
[1736204956090,2.2896,218.3,218.26,2.2899]
[1736204957785,7.09175914,218.29,218.24,2.6]
[1736204957982,7.09175914,218.29,218.25,2.6]
[1736204959592,7.09175914,218.27,218.18,6.35634782]
[1736204959885,7.09175914,218.25,218.19,2.6]
[1736204960078,2.6,218.35,218.18,13.44810696]
[1736204960079,7.09175914,218.23,218.18,6.35634782]
[1736204960283,7.09175914,218.21,218.19,2.6]
[1736204960683,2.2907,218.2,218.19,2.6]
[1736204967387,4.3494,218.29,218.19,2.6]
[1736204967584,11.44115914,218.29,218.22,7.09175914]
[1736204967792,11.44115914,218.29,218.19,2.6]
[1736204967793,7.09175914,218.27,218.2,7.09175914]
[1736204968092,2.2902,218.25,218.21,2.2905]
[1736204968990,2.2902,218.24,218.21,2.2905]
[1736204976800,7.09175914,218.25,218.19,2.6]
[1736204977001,7.09175914,218.25,218.17,7.09175914]
[1736204977297,7.09175914,218.25,218.18,2.6]
[1736204977698,2.2904,218.22,218.19,2.2907]
[1736204977900,2.2904,218.22,218.18,2.6]
[1736204979002,2.2904,218.22,218.18,4.8908]
[1736204984501,2.2907,218.2,218.18,2.6]
[1736204991103,2.2907,218.2,218.17,2.2909]
[1736204993008,4.3494,218.29,218.18,7.09175914]
[1736204993210,7.09175914,218.28,218.22,2.2904]
[1736204993513,7.09175914,218.24,218.21,2.6]
[1736204994409,2.2904,218.22,218.21,2.6]
[1736204996210,4.3494,218.29,218.21,2.6]
[1736204996211,7.09175914,218.26,218.21,2.6]
[1736204996411,2.2903,218.23,218.21,2.6]
[1736204998316,7.09175914,218.24,218.21,2.6]
[1736204998614,2.2904,218.22,218.21,2.6]
[1736205001413,2.2903,218.23,218.21,2.6]
[1736205003822,2.2901,218.26,218.23,2.2903]
[1736205009615,6.8659,218.4,218.23,2.2903]
[1736205009824,7.09175914,218.32,218.25,7.09175914]
[1736205010028,7.09175914,218.32,218.26,2.58]
[1736205010218,7.09175914,218.3,218.26,2.58]
[1736205010425,2.2898,218.29,218.26,4.87]
[1736205014934,7.09175914,218.28,218.17,1.55]
[1736205015136,7.09175914,218.25,218.18,9.67175914]
[1736205015436,7.09175914,218.25,218.18,2.58]
[1736205015830,7.09175914,218.25,218.17,8.64175914]
[1736205016133,7.09175914,218.25,218.2,2.2905]
[1736205016134,2.2903,218.23,218.2,2.2905]
[1736205016328,7.09175914,218.25,218.19,7.09175914]
[1736205016534,7.09175914,218.25,218.18,2.58]
[1736205016731,2.2904,218.23,218.2,2.2906]
[1736205018634,2.2904,218.23,218.21,2.58]
[1736205019730,2.2902,218.24,218.21,2.58]
[1736205020432,7.09175914,218.25,218.21,2.58]
[1736205020637,2.2904,218.22,218.21,2.58]
[1736205021638,2.2903,218.23,218.21,2.58]
[1736205021840,4.6081,218.32,218.21,2.58]
[1736205022144,2.2902,218.25,218.21,2.58]
[1736205022642,2.2902,218.25,218.22,2.2904]
[1736205022830,2.2902,218.24,218.21,2.58]
[1736205023838,7.09175914,218.26,218.21,2.58]
[1736205025541,2.2904,218.22,218.21,2.58]
[1736205031042,4.6081,218.32,218.21,2.58]
[1736205031238,2.2901,218.25,218.22,2.2904]
[1736205031636,2.2902,218.24,218.21,4.8705]
[1736205032038,7.09175914,218.26,218.21,2.58]
[1736205032236,2.2905,218.21,218.2,2.58]
[1736205032742,7.09175914,218.22,218.15,1.52]
[1736205032943,7.09175914,218.22,218.16,2.58]
[1736205033644,2.2906,218.2,218.17,2.2909]
[1736205034646,7.09175914,218.24,218.16,9.67175914]
[1736205034647,7.09175914,218.24,218.18,2.2908]
[1736205035646,2.2906,218.21,218.18,2.2908]
[1736205036741,2.29,218.27,218.2,2.2906]
[1736205036944,7.09175914,218.26,218.21,2.58]
[1736205038347,2.2903,218.23,218.21,2.58]
[1736205038847,7.09175914,218.28,218.21,2.58]
[1736205039048,2.2902,218.25,218.21,4.8704]
[1736205039243,7.09175914,218.28,218.21,4.8704]
[1736205039438,7.09175914,218.28,218.21,2.58]
[1736205039947,7.09175914,218.26,218.21,2.58]
[1736205040144,2.2904,218.23,218.21,2.58]
[1736205041348,7.09175914,218.27,218.21,4.8705]
[1736205042047,2.2902,218.24,218.21,4.8705]
[1736205045251,7.09175914,218.25,218.15,1.52]
[1736205045447,7.09175914,218.25,218.16,9.67175914]
[1736205046050,2.2907,218.2,218.17,2.2909]
[1736205047652,2.2907,218.2,218.18,2.58]
[1736205047842,7.09175914,218.25,218.16,7.09175914]
[1736205048050,2.2907,218.19,218.17,2.58]
[1736205048751,10.54074688,218.32,218.18,7.09175914]
[1736205048952,2.2906,218.21,218.18,7.09175914]
[1736205049153,7.09175914,218.25,218.18,7.09175914]
[1736205049656,12.26248324,218.32,218.18,7.09175914]
[1736205049855,7.09175914,218.25,218.18,7.09175914]
[1736205050453,2.2906,218.2,218.18,7.09175914]
[1736205050654,2.2906,218.2,218.17,4.8709]
[1736205051366,2.2908,218.19,218.17,2.58]
[1736205052359,2.291,218.17,218.14,9.38295914]
[1736205052561,2.291,218.17,218.15,2.58]
[1736205053162,2.291,218.17,218.14,9.38295914]
[1736205053358,2.2909,218.18,218.15,4.8711]
[1736205055064,7.09175914,218.21,218.15,2.58]
[1736205055265,2.2909,218.17,218.15,2.58]
[1736205057768,2.2908,218.18,218.15,4.8711]
[1736205058562,2.2908,218.18,218.16,7.09175914]
[1736205058760,2.2903,218.24,218.2,2.2906]
[1736205058967,2.2903,218.24,218.21,9.65175914]
[1736205060269,2.2903,218.24,218.21,11.94225914]
[1736205060568,7.09175914,218.29,218.21,11.94225914]
[1736205060768,2.2899,218.28,218.24,2.2902]
[1736205061271,8.58845914,218.31,218.24,2.2902]
[1736205061469,2.2899,218.27,218.24,2.2902]
[1736205062065,2.2899,218.27,218.23,9.38205914]
[1736205062962,2.2901,218.25,218.21,9.65175914]
[1736205063971,2.2901,218.25,218.21,11.94215914]
[1736205065168,1.4967,218.31,218.21,9.65175914]
[1736205065371,10.18645914,218.32,218.25,7.09175914]
[1736205065569,1.536,218.32,218.27,7.09175914]
[1736205065868,2.2894,218.32,218.28,2.2898]
[1736205066972,1.4507,218.38,218.29,7.09175914]
[1736205067269,2.2891,218.35,218.31,7.09175914]
[1736205067474,2.2891,218.35,218.32,2.56]
[1736205068569,2.2889,218.37,218.33,7.09175914]
[1736205069074,2.2889,218.37,218.33,9.38105914]
[1736205069676,2.2892,218.34,218.32,2.56]
[1736205069877,7.09175914,218.36,218.32,2.56]
[1736205070271,2.2889,218.37,218.32,2.56]
[1736205070477,7.09175914,218.38,218.32,9.65175914]
[1736205071067,1.5568,218.43,218.34,7.09175914]
[1736205071379,9.38015914,218.41,218.37,2.2887]
[1736205071573,7.09175914,218.41,218.34,7.09175914]
[1736205072573,2.2885,218.4,218.36,2.2889]
[1736205073773,2.2885,218.4,218.37,2.56]
[1736205074073,7.09175914,218.41,218.37,2.56]
[1736205074268,2.2887,218.39,218.37,2.56]
[1736205076780,7.09175914,218.39,218.34,2.56]
[1736205076975,7.09175914,218.37,218.34,2.56]
[1736205077278,2.2889,218.36,218.34,2.56]
[1736205078182,2.289,218.35,218.34,2.56]
[1736205081075,7.09175914,218.37,218.3,7.09175914]
[1736205081278,2.2892,218.34,218.31,2.56]
[1736205081482,7.09175914,218.37,218.31,2.56]
[1736205082182,7.09175914,218.37,218.31,4.8495]
[1736205082579,2.2891,218.35,218.31,4.8495]
[1736205083283,7.09175914,218.37,218.31,4.8495]
[1736205083483,2.2892,218.34,218.31,4.8495]
[1736205083680,1.499,218.42,218.33,2.2892]
[1736205083880,7.09175914,218.39,218.33,2.2892]
[1736205085187,8.64855914,218.43,218.36,7.09175914]
[1736205085388,8.64855914,218.43,218.36,9.65175914]
[1736205085683,8.64855914,218.43,218.36,2.56]
[1736205086279,7.09175914,218.41,218.36,2.56]
[1736205086479,2.2887,218.39,218.36,2.56]
[1736205086780,7.09175914,218.41,218.36,2.56]
[1736205087785,8.64855914,218.43,218.36,11.94065914]
[1736205089086,2.2887,218.39,218.36,11.94065914]
[1736205089279,8.64855914,218.43,218.36,11.94065914]
[1736205089479,8.64855914,218.43,218.36,4.8489]
[1736205089684,2.2887,218.38,218.36,2.56]
[1736205089981,8.64855914,218.43,218.36,2.56]
[1736205090190,7.09175914,218.41,218.36,2.56]
[1736205090985,7.09175914,218.39,218.34,2.58]
[1736205091177,1.5568,218.43,218.34,2.58]
[1736205091178,7.09175914,218.37,218.34,2.58]
[1736205091687,2.289,218.35,218.34,2.58]
[1736205095886,1.5568,218.43,218.34,2.58]
[1736205096082,2.2887,218.39,218.35,7.09175914]
[1736205096686,2.2887,218.39,218.36,2.2889]
[1736205096879,2.2887,218.38,218.35,7.09175914]
[1736205097589,2.2886,218.39,218.35,7.09175914]
[1736205098478,2.2886,218.39,218.36,2.2889]
[1736205098684,2.2886,218.39,218.35,7.09175914]
[1736205099779,2.2888,218.38,218.35,9.38075914]
[1736205100483,2.2888,218.37,218.35,7.09175914]
[1736205103091,2.2888,218.38,218.35,7.09175914]
[1736205103286,2.2888,218.38,218.35,9.38075914]
[1736205107493,7.09175914,218.41,218.33,9.38095914]
[1736205107694,7.09175914,218.39,218.36,2.58]
[1736205107892,7.09175914,218.39,218.33,2.58]
[1736205108085,2.2892,218.34,218.31,7.09175914]
[1736205108285,2.2892,218.34,218.32,2.58]
[1736205108594,2.2889,218.37,218.32,9.67175914]
[1736205108989,7.09175914,218.42,218.32,9.67175914]
[1736205109489,1.5568,218.43,218.32,9.67175914]
[1736205109490,7.09175914,218.4,218.32,9.67175914]
[1736205110087,2.2891,218.35,218.32,9.67175914]
[1736205110684,2.2892,218.34,218.32,9.67175914]
[1736205113792,2.2892,218.34,218.32,2.58]
[1736205118301,2.2892,218.34,218.32,9.67175914]
[1736205120706,2.2892,218.34,218.32,2.58]
[1736205122709,7.09175914,218.34,218.22,50.85078258]
[1736205122909,7.09175914,218.28,218.24,8.93634782]
[1736205123206,7.09175914,218.3,218.24,8.93634782]
[1736205123615,7.09175914,218.3,218.24,16.02810696]
[1736205123909,1.4168,218.36,218.29,7.09175914]
[1736205124107,1.4168,218.36,218.29,9.67175914]
[1736205124108,7.09175914,218.35,218.29,9.67175914]
[1736205124310,2.2893,218.33,218.29,4.8697]
[1736205124504,7.09175914,218.33,218.29,2.58]
[1736205124917,7.09175914,218.31,218.29,2.58]
[1736205125210,2.2896,218.3,218.25,9.67175914]
[1736205125612,2.2896,218.3,218.26,2.29]
[1736205125813,2.2897,218.29,218.26,2.29]
[1736205126014,2.2897,218.29,218.25,2.58]
[1736205127415,2.2897,218.29,218.25,11.96185914]
[1736205128016,2.2897,218.29,218.26,2.29]
[1736205129216,7.09175914,218.33,218.25,9.67175914]